{"text_format":"1","workbook":"xlsx","n_sheets":1,"sheets":["Ark1"],"not_rendered":{"charts":0,"images":0,"macros":1,"external_links":0,"defined_names":1,"comments":1,"pivot_tables":0},"unopened":[],"bounds":{"document_bytes":16777216,"sheet_cells":100000,"rows_first":2000,"rows_last":500,"rows_between":2000,"halvings":0,"cell_chars":16384,"cell_head_chars":4096},"cells_cut":0,"cells_raw":0,"read":"whole","date_system":"1900"}

{"sheet":"Ark1","index":0,"n_rows":46,"n_cols":9,"rows_kept":46,"cut":false,"hidden":false,"merged":[[7,1,11,9],[38,0,38,2],[41,0,41,2],[43,8,43,9],[40,8,40,9],[38,8,38,9],[39,8,39,9],[41,8,41,9],[15,0,15,2],[15,8,15,9],[20,0,20,2],[20,8,20,9],[25,0,25,2],[16,0,16,2],[16,8,16,9],[17,0,17,2],[17,8,17,9],[18,8,18,9],[24,0,24,7],[24,8,24,9],[23,8,23,9],[18,0,18,2],[22,0,22,2],[25,8,25,9],[45,0,45,2],[36,0,36,2],[23,0,23,2],[43,0,43,5],[32,0,32,2],[33,0,33,2],[42,0,42,5],[39,0,39,2],[40,0,40,2],[34,0,34,2],[44,1,44,9],[42,8,42,9],[36,8,36,9],[37,0,37,2],[37,8,37,9],[12,0,12,9],[13,0,13,1],[13,6,13,7],[14,0,14,7],[13,8,13,9],[14,8,14,9],[34,8,34,9],[35,0,35,7],[35,8,35,9],[28,8,28,9],[19,0,19,2],[19,8,19,9],[21,8,21,9],[22,8,22,9],[21,0,21,2],[32,8,32,9],[33,8,33,9],[26,0,26,2],[26,8,26,9],[27,0,27,2],[27,8,27,9],[28,0,28,2],[0,0,0,9],[3,3,3,4],[4,1,4,2],[4,3,4,4],[6,1,6,9],[1,0,1,9],[3,1,3,2],[3,5,3,9],[4,5,4,9],[2,0,2,9],[5,1,5,2],[5,3,5,4],[5,5,5,9],[29,0,29,2],[29,8,29,9],[30,0,30,2],[30,8,30,9],[31,0,31,2],[31,8,31,9]]}
["\nROSKILDE KANTINE\nKantinerekvisition for AU \nBestilling sendes senest kl. 12.00 dagen før den ønskede levering!\nBestillinger over 10 personer skal bestilles senest 4 arbejdsdage før.\nÆndringer sendes til: kantinerosk@au.dk\n"]
["Krav til deltagerlisten:\n- Deltagere skal angives med navns nævnelse. Der må ikke anvendes forkortelse for navne\n- Der må gerne angives et navngivet udvalg, nævn eller gruppe, hvor man vil kunne finde tilbage til medlemmerne fx Aktivitetsudvalg\n- Tilhørsforhold på deltagerne skal angives, dvs. intern/ekstern virksomhed\n- Der må gerne vedhæftes en særskilt deltagerliste; sendes til dmuromst@au.dk\n- Hvis deltagerkredsen er en større gruppe, hvor der er usikkerhed om, hvem der deltager i arrangementet, fx forsvar, receptioner mv, kan invitationen til arrangementet sendes til: dmuromst@au.dk"]
["Markeret med * SKAL udfyldes - ALLE FELTER SKAL VÆRE UDFYLDT FOR AT ORDREN BLIVER GODKENDT OG EKSPEDERET! "]
["Mødedato *",null,null,"Rekvirent: *"]
["Proj. / Sag: *",null,null,"Lokaltlf./email: *"]
["Akt. / Sagsopgave: *",null,null,"Antal deltagere: *"]
["Mødets titel/formål  *"]
["Deltagere: *"]
[]
[]
[]
[]
[]
["Sortiment",null,null,"Antal ","Pris ",null,"Pris i alt",null,"Afhentes kl."]
["Møde formiddag"]
["Kande kaffe",null,null,null,29,null,"kr.",{"$f":"E16*D16","v":0}]
["Kande med økologisk the",null,null,null,22,null,"kr.",{"$f":"E17*D17","v":0}]
["Boller m/smør, ost og marmelade",null,null,null,17,null,"kr.",0]
["Tebrikes / Wienerbrød",null,null,null,17,null,"kr.",0]
["Smør, 8 g. ",null,null,null,2,null,"kr.",0]
["Frugt i stykker",null,null,null,15,null,"kr.",0]
["Kildevand 50 cl.",null,null,null,17.5,null,"kr.",0]
[null,null,null,null,null,null,"kr.",0]
[null,null,null,null,null,null,"kr.",0]
["Frokost"]
["Sandwich Rustique",null,null,null,28,null,"kr.",{"$f":"E26*D26","v":0}]
["Sodavand, 50 cl. ",null,null,null,17.5,null,"kr.",{"$f":"E27*D27","v":0}]
["Buffet, serveres kun i kantinen",null,null,null,69,null,"kr.",0]
["Frokostanretning",null,null,null,105,null,"kr.",0]
["Uspecificeret smørrebrød højtbelagt",null,null,null,25,null,"kr.",0]
["Reception pr. kuvert",null,null,null,125,null,"kr.",0]
["Reception pr. kuvert (uden drikkevarer)",null,null,null,100,null,"kr.",0]
["Opdækning pr. kuvert",null,null,null,8,null,"kr.",0]
[null,null,null,null,null,null,"kr.",0]
[null,null,null,null,null,null,"kr.",0]
["Møde eftermiddag "]
["Kande med kaffe",null,null,null,29,null,"kr.",{"$f":"E37*D37","v":0}]
["Kande med økologisk the",null,null,null,22,null,"kr.",{"$f":"E38*D38","v":0}]
["Hjemmebagt kage",null,null,null,14,null,"kr.",0]
[null,null,null,null,null,null,"kr.",0]
["Hel hjemmebagt franskbrød",null,null,null,32.5,null,"kr.",0]
["I alt",null,null,null,null,null,"kr.",{"$f":"SUM(H16:H41)","v":0}]
["Moms udgør",null,null,null,null,null,"kr.",{"$f":"H42*0.2","v":0}]
["Beløb excl moms",null,null,null,null,null,"kr.",{"$f":"H42*0.8","v":0},"Roskilde Kantine"]
["Bemærkninger:"]
["Version 1.0 - redigeret d. 23/8-18"]